{"text_format":"1","workbook":"xlsx","n_sheets":2,"sheets":["Grupper","Heats"],"not_rendered":{"charts":0,"images":1,"macros":1,"external_links":0,"defined_names":1,"comments":0,"pivot_tables":0},"unopened":[],"bounds":{"document_bytes":16777216,"sheet_cells":100000,"rows_first":2000,"rows_last":500,"rows_between":2000,"halvings":0,"cell_chars":16384,"cell_head_chars":4096},"cells_cut":0,"cells_raw":0,"read":"whole","date_system":"1900"}

{"sheet":"Grupper","index":0,"n_rows":21,"n_cols":1,"rows_kept":21,"cut":false,"hidden":false,"merged":[]}
["Gruppe 1"]
["BE Technology ApS"]
["BEC 1"]
["BEC 2"]
["Bruun Rasmussen Auctioneers"]
["Carplace"]
["CMC 1 - Coop Motor Club"]
["CMC 2 - Coop Motor Club"]
["CMC 3 - Coop Motor Club"]
["DSV 1 - DSV Transport Go-cart"]
["DSV 2 - DSV Transport Go-cart"]
["DSV 3 - DSV Transport Go-cart"]
["Food by coor"]
["Graspian"]
["PPE Racing"]
["Radiometer"]
["Rambøll"]
["Roskilde Kongres-&Idrætscenter"]
["Skovagergård"]
["ToldSkat Idræt"]
["VENZO"]

{"sheet":"Heats","index":1,"n_rows":22,"n_cols":4,"rows_kept":22,"cut":false,"hidden":false,"merged":[]}
[]
["Hold",null,null,"Sum"]
["PPE Racing",1,1,{"$f":"SUM(B3:C3)","v":2}]
["Graspian",2,3,{"$f":"SUM(B4:C4)","v":5}]
["BEC 2",5,2,{"$f":"SUM(B5:C5)","v":7}]
["BEC 1",3,5,{"$f":"SUM(B6:C6)","v":8}]
["CMC 1 - Coop Motor Club",6,4,{"$f":"SUM(B7:C7)","v":10}]
["Radiometer",7,7,{"$f":"SUM(B8:C8)","v":14}]
["BE Technology ApS",4,10,{"$f":"SUM(B9:C9)","v":14}]
["Carplace",10,6,{"$f":"SUM(B10:C10)","v":16}]
["CMC 2 - Coop Motor Club",8,8,{"$f":"SUM(B11:C11)","v":16}]
["CMC 3 - Coop Motor Club",9,9,{"$f":"SUM(B12:C12)","v":18}]
["VENZO",12,11,{"$f":"SUM(B13:C13)","v":23}]
["Roskilde Kongres-&Idrætscenter",11,12,{"$f":"SUM(B14:C14)","v":23}]
["Rambøll",15,14,{"$f":"SUM(B15:C15)","v":29}]
["Skovagergård",17,13,{"$f":"SUM(B16:C16)","v":30}]
["DSV 3 - DSV Transport Go-cart",14,16,{"$f":"SUM(B17:C17)","v":30}]
["Bruun Rasmussen Auctioneers",16,15,{"$f":"SUM(B18:C18)","v":31}]
["Food by coor",13,20,{"$f":"SUM(B19:C19)","v":33}]
["DSV 2 - DSV Transport Go-cart",18,17,{"$f":"SUM(B20:C20)","v":35}]
["ToldSkat Idræt",19,18,{"$f":"SUM(B21:C21)","v":37}]
["DSV 1 - DSV Transport Go-cart",20,19,{"$f":"SUM(B22:C22)","v":39}]